Cogmind - Beta 13 @@@ ROGUE MODE // 2024.04.02 @ 02:13:43 Player: writers.room Result: Destroyed by S-27 Virus with Autogun Performance ------------- Evolutions (3) 1500 Regions Visited (6) 1200 Robots Destroyed (61) 305 Value Destroyed (1964) 1964 Prototype IDs (6) 120 Alien Tech Used (0) 0 Bonus (200) 200 TOTAL SCORE: 5289 Bonus ------- Pacifist 200 Cogmind --------- Core Integrity 0/700 Matter 8/300 Energy 69/100 System Corruption 27% Temperature Cool (0) Movement Core (50) Location -7/Lower Caves Parts ------- > --- POWER (2) -------- (None) > --- PROPULSION (5) --- (None) > --- UTILITY (4) ------ (None) > --- WEAPON (2) ------- (None) > --- INVENTORY (5) ---- (None) Peak State ------------ > --- POWER ------------ Light Nuclear Core Improved Deuterium Engine > --- PROPULSION ------- Improved Aluminum Leg Improved Aluminum Leg Improved Aluminum Leg Improved Titanium Leg Flexi-carbon Leg > --- UTILITY ---------- Cryofiber Web Cooling System Huge Storage Unit Medium Battery > --- WEAPON ----------- Heavy Ion Cannon Bore Cannon > --- INVENTORY -------- Improved Deuterium Engine Makeshift System Shield Heavy Rocket Launcher Heavy Rocket Launcher Heavy Rocket Launcher Heavy Rocket Launcher Heavy Missile Launcher Heavy Missile Launcher Heavy Missile Launcher Heavy Missile Launcher Enhanced Flamer Katana Makeshift Spear [Rating: 43] Favorites ----------- Power Improved Deuterium Engine Engine Improved Deuterium Engine Power Core Enhanced Nuclear Core Propulsion Improved Aluminum Leg Treads Light Treads Leg Improved Aluminum Leg Flight Unit Flight Unit Utility Huge Storage Unit Device Cryofiber Web Storage Huge Storage Unit Processor Improved Targeting Computer Protection Hardened Light Armor Plating Weapon Advanced Beam Cannon Energy Gun Improved EM Shotgun Energy Cannon Advanced Beam Cannon Ballistic Gun Gauss Rifle Ballistic Cannon Flak Cannon Launcher Heavy Rocket Launcher Special Weapon Enhanced Flamer Impact Weapon Maul Slashing Weapon Katana Piercing Weapon Makeshift Spear Build | -11 -10 -9 -8 -7 -7 -7 ------- Run | Yrd Mat Mat Mat Fac Low Low Slots Evolved 6 | . . 2 2 2 . . Power 1 | . . . . 1 . . Propulsion 3 | . . . 2 1 . . Utility 2 | . . 2 . . . . Weapon . | . . . . . . . Parts Attached 85 | 3 3 17 26 6 15 15 Power 12 | 1 . 1 1 3 3 3 Engine 8 | 1 . 1 1 1 2 2 Core 4 | . . . . 2 1 1 Reactor . | . . . . . . . Propulsion 28 | 2 2 5 10 1 8 . Treads 3 | . . 3 . . . . Leg 23 | 2 . 2 10 1 8 . Wheel . | . . . . . . . Hover . | . . . . . . . Flight 2 | . 2 . . . . . Utility 18 | . 1 6 10 . . 1 Device 7 | . . . 7 . . . Storage 4 | . 1 1 2 . . . Processor 4 | . . 4 . . . . Hackware . | . . . . . . . Protection 3 | . . 1 1 . . 1 Artifact . | . . . . . . . Weapon 27 | . . 5 5 2 4 11 Energy Gun 3 | . . 2 . . . 1 Energy Cannon 6 | . . 3 1 1 1 . Ballistic Gun 3 | . . . 2 . 1 . Ballistic Cannon 2 | . . . . 1 1 . Launcher 7 | . . . 1 . . 6 Special Weapon 2 | . . . . . . 2 Impact Weapon 1 | . . . 1 . . . Slashing Weapon 2 | . . . . . 1 1 Piercing Weapon 1 | . . . . . . 1 Special Melee Weapon . | . . . . . . . Unidentified Prototypes 6 | . . 3 2 1 . . Parts Lost 30 | . . 3 1 . 4 22 Power 5 | . . . . . . 5 Propulsion 7 | . . . 1 . 1 5 Utility 6 | . . 2 . . . 4 Weapon 12 | . . 1 . . 3 8 Highest Loss Streak 11 | . . 2 1 . 2 11 To Critical Strikes 2 | . . . . . 1 1 Average Slot Usage (%) 85 | . 39 91 98 100 99 56 Engine 10 | . 14 11 9 2 11 12 Core 2 | . . . . 12 2 1 Treads 3 | . . 12 . . . . Leg 21 | . 2 7 36 38 37 7 Device 8 | . . . 15 15 15 4 Storage 11 | . 2 9 13 15 15 9 Processor 6 | . . 23 4 . . . Protection 2 | . . 3 1 . . 4 Energy Gun 1 | . . 5 . . . . Energy Cannon 7 | . . 15 10 7 5 . Ballistic Cannon 2 | . . . . 5 6 1 Launcher 1 | . . . 1 1 . 5 Piercing Weapon 1 | . . . . . . 4 Naked Turns 12 | . . . . . . 12 Heaviest Build 119 | 3 43 103 107 112 119 117 Greatest Support 79 | 20 20 43 54 66 79 79 Greatest Overweight (x) 37 | . 14 4 2 1 2 37 Average Overweight (x) 2 | . . 2 1 1 1 10 Largest Inventory Capacity 25 | 5 20 25 25 25 25 25 Average Capacity 24 | 5 8 23 25 25 25 24 Most Carried 25 | 3 2 25 25 23 20 14 Average Carried 15 | . . 16 22 20 13 8 Final Capacity 25 | 5 5 25 25 25 25 5 Final Carried 23 | . . 22 23 20 12 . Class Distribution -------------------- 90% | Mutant 9% | Scavenger-Mutant Dominant Class ---------------- Mutant | -10/Materials Mutant | -9/Materials Scavenger-Mutant | -8/Materials Mutant | -7/Factory Mutant | -7/Lower Caves Mutant | -7/Lower Caves Resources | -11 -10 -9 -8 -7 -7 -7 ----------- Run | Yrd Mat Mat Mat Fac Low Low Matter Collected 1532 | 106 . 319 325 134 418 230 Remotely . | . . . . . . . Salvage Created 2128 | . . 1126 292 249 241 220 Parts 114 | . . 77 12 2 14 9 Haulers Intercepted 3 | . . 2 1 . . . Recyclers Shooed 2 | . . 1 . 1 . . Parts Field Recycled . | . . . . . . . Retrieved Matter . | . . . . . . . Parts Self-Destructed 25 | . . . . . 13 12 Prevented 6 | . . . . . 2 4 Kills | -11 -10 -9 -8 -7 -7 -7 ------- Run | Yrd Mat Mat Mat Fac Low Low Combat Hostiles Destroyed 51 | . . 19 6 4 13 9 Melee 2 | . . . 2 . . . Guns 1 | . . 1 . . . . Cannons 37 | . . 16 1 4 13 3 AOE 9 | . . 2 1 . . 6 Classes Destroyed 13 | . . 8 3 2 . . Worker 1 | . . 1 . . . . Builder 1 | . . 1 . . . . Tunneler 1 | . . . 1 . . . Hauler 3 | . . 2 1 . . . Recycler 3 | . . 2 . 1 . . Operator 1 | . . 1 . . . . Swarmer 16 | . . 3 . 1 9 3 Grunt 17 | . . 10 3 1 . 3 Brawler 1 | . . . 1 . . . Duelist 1 | . . . . 1 . . Sentry 6 | . . 6 . . . . Hunter 3 | . . . 2 . . 1 Programmer 1 | . . . . 1 . . Decomposer 1 | . . . . . . 1 Wasp 3 | . . . . . 3 . Thug 1 | . . . . . 1 . Savage 2 | . . . . . . 2 Best Kill Streak 5 | . . 5 3 2 4 3 Combat Bots Only 5 | . . 5 3 2 4 3 Max Kills in Single Turn 2 | . . 2 1 1 1 2 Gunslinging . | . . . . . . . Exploded 2 | . . 2 1 . . 2 Melee 1 | . . . 1 . . . Uniques/NPCs Destroyed . | . . . . . . . Combat | -11 -10 -9 -8 -7 -7 -7 -------- Run | Yrd Mat Mat Mat Fac Low Low Hostile Shots Fired 411 | . 5 98 34 24 124 126 Missed 114 | . 3 28 8 6 37 32 Damage Taken 4968 | . 18 912 348 341 1344 2005 Core 921 | . 18 159 43 66 76 559 Absorbed by Shields 20 | . . . 20 . . . Core Remaining (%) 86 | 100 92 60 92 . . . Volleys Fired 134 | . . 38 15 16 35 30 Largest 2 | . . 2 2 2 2 2 Hottest 136 | . . 136 124 100 122 122 Shots Fired 232 | . . 75 18 28 66 45 Gun 25 | . . 6 . . 14 5 Cannon 182 | . . 69 13 27 52 21 Launcher 22 | . . . 5 1 . 16 Special 3 | . . . . . . 3 Kinetic 79 | . . . . 11 49 19 Thermal 98 | . . 69 9 . 10 10 Explosive 22 | . . . 5 1 . 16 Electromagnetic 33 | . . 6 4 16 7 . Robot Hit Streak 13 | . . 13 8 13 8 5 Robot Miss Streak 9 | . . 3 2 9 7 5 Penetration Max . | . . . . . . . Secondary Targets . | . . . . . . . Shots Hit Robots 149 | . . 50 17 17 42 23 Core Hits 97 | . . 29 12 10 31 15 Critical Kills 4 | . . . 2 . 1 1 Critical Parts Destroyed 6 | . . . 1 . 3 2 Critical Strikes 12 | . . . 3 1 4 4 Meltdown 1 | . . . 1 . . . Destroy 7 | . . . . . 4 3 Corrupt 1 | . . . . 1 . . Smash 2 | . . . 2 . . . Sever 1 | . . . . . . 1 Melee Attacks 10 | . . . 6 . . 4 Impact 6 | . . . 6 . . . Slashing 4 | . . . . . . 4 Piercing . | . . . . . . . Sneak Attacks . | . . . . . . . Combat Hostiles . | . . . . . . . Follow-up Attacks . | . . . . . . . Damage Inflicted 4327 | . . 1250 634 355 937 1151 Guns 325 | . . 121 . . 155 49 Cannons 2536 | . . 988 193 318 782 255 Explosions 1211 | . . 141 264 37 . 769 Melee 244 | . . . 177 . . 67 Ramming . | . . . . . . . Kinetic 1110 | . . . . 151 730 229 Thermal 1470 | . . 1129 145 . 110 86 Explosive 1070 | . . . 264 37 . 769 Electromagnetic 433 | . . 121 48 167 97 . Impact 177 | . . . 177 . . . Slashing 67 | . . . . . . 67 Piercing . | . . . . . . . Highest Corruption 27 | . . . . 1 1 27 Average Corruption 11 | . . . . 1 1 19 Corruption Purged . | . . . . . . . Corruption Blocked . | . . . . . . . Effects 75 | . . . . . 7 68 Message Errors 17 | . . . . . 2 15 Matter Fused 17 | . . . . . 1 16 Heat Flow Errors 7 | . . . . . 2 5 Energy Discharges 5 | . . . . . . 5 Parts Rejected 1 | . . . . . . 1 Data Loss (minor) 14 | . . . . . 1 13 Data Loss (major) 6 | . . . . . . 6 Misfires 3 | . . . . . . 3 Alerts 4 | . . . . . . 4 Weapon Failures 1 | . . . . . 1 . Overload Shots . | . . . . . . . Overflow Damage 152 | . . 20 51 17 . 64 Projectiles 46 | . . 20 . 17 . 9 Explosions 63 | . . . 8 . . 55 Melee 43 | . . . 43 . . . Knockbacks 6 | . . . 2 . 2 2 Impact 2 | . . . 2 . . . Kinetic 4 | . . . . . 2 2 Secondary . | . . . . . . . Self-Inflicted Damage 219 | . . 15 . . . 204 Shots 5 | . . 1 . . . 4 Rammed . | . . . . . . . Targets Rammed . | . . . . . . . Kicked . | . . . . . . . Crushed . | . . . . . . . Highest Temperature 439 | . . 318 439 . 83 279 Average Temperature 122 | . . 105 242 . 38 109 Received Heat Transfer 854 | . . 330 66 63 188 207 Effects 6 | . . . 6 . . . Shutdowns 1 | . . . 1 . . . Interference 3 | . . . 3 . . . Damage (minor) 2 | . . . 2 . . . Siege Activations . | . . . . . . . Robots Corrupted 1 | . . . . 1 . . Combat Hostiles . | . . . . . . . Parts Fried 2 | . . . 2 . . . Impact Corruptions 2 | . . . 2 . . . Robots Melted 1 | . . . 1 . . . Combat Hostiles 1 | . . . 1 . . . Parts Melted 6 | . . 2 1 3 . . Heat Transferred 2561 | . . 1926 259 . 148 228 Parts Sabotaged . | . . . . . . . Parts Stolen . | . . . . . . . Parts Stripped . | . . . . . . . Power Chain Reactions 2 | . . 2 . . . . Alert | -11 -10 -9 -8 -7 -7 -7 ------- Run | Yrd Mat Mat Mat Fac Low Low Peak Influence 335 | . 30 335 205 152 . . Initial 76 | . . 12 76 42 . . Average 132 | . . 202 75 73 . . Maximum Alert Level 1 | . . 1 1 . . . Low Security (%) 72 | 100 100 54 82 100 . . Level 1 27 | . . 45 17 . . . Level 2 . | . . . . . . . Level 3 . | . . . . . . . Level 4 . | . . . . . . . Level 5 . | . . . . . . . High Security . | . . . . . . . Max Security . | . . . . . . . Squads Dispatched 13 | . . 4 7 2 . . Investigation 5 | . . 3 2 . . . Extermination 1 | . . . . 1 . . Reinforcement 4 | . . 1 2 1 . . Assault . | . . . . . . . Garrison 3 | . . . 3 . . . Intercept . | . . . . . . . Searches Triggered . | . . . . . . . Construction Impeded . | . . . . . . . Haulers Reinforced . | . . . . . . . Active Scanning Responses . | . . . . . . . Cargo Convoy Interrupts . | . . . . . . . Stealth | -11 -10 -9 -8 -7 -7 -7 --------- Run | Yrd Mat Mat Mat Fac Low Low Distress Signals 6 | . 1 1 4 . . . Communications Jammed . | . . . . . . . Distress Signals . | . . . . . . . Times Spotted 92 | . 4 26 8 10 21 23 Peak Tracking Total 14 | . 4 5 3 3 5 14 Tactical Retreats 7 | . 1 3 . . 3 . Traps | -11 -10 -9 -8 -7 -7 -7 ------- Run | Yrd Mat Mat Mat Fac Low Low Traps Triggered 1 | . . . . 1 . . Indirectly . | . . . . . . . Trap Hack Attempts . | . . . . . . . Triggered . | . . . . . . . Disarmed . | . . . . . . . Reprogrammed . | . . . . . . . Reused . | . . . . . . . Traps Extracted . | . . . . . . . Installed . | . . . . . . . Triggered 2 | . . . . . . 2 Machines | -11 -10 -9 -8 -7 -7 -7 ---------- Run | Yrd Mat Mat Mat Fac Low Low Machines Disabled 4 | . . 2 2 . . . Max in Single Turn 1 | . . 1 1 . . . Machines Repaired . | . . . . . . . Machines Dismantled . | . . . . . . . Machines Sabotaged . | . . . . . . . Overloaded Fab Kills . | . . . . . . . Hacking | -11 -10 -9 -8 -7 -7 -7 --------- Run | Yrd Mat Mat Mat Fac Low Low Machines Accessed 11 | . 1 5 2 2 1 . Terminals 6 | . . 4 2 . . . Fabricators 1 | . . . . 1 . . Repair Stations . | . . . . . . . Recycling Units 3 | . 1 1 . 1 . . Scanalyzers . | . . . . . . . Garrison Access . | . . . . . . . Total Hacks 34 | . 3 15 6 2 8 . Successful 19 | . 2 5 3 1 8 . Failed 15 | . 1 10 3 1 . . Catastrophic 5 | . . 4 . 1 . . Database Lockouts . | . . . . . . . Manual 25 | . 3 16 5 1 . . Terminals 19 | . . 13 6 . . . Fabricators 1 | . . . . 1 . . Repair Stations . | . . . . . . . Recycling Units 6 | . 3 2 . 1 . . Scanalyzers . | . . . . . . . Garrison Access . | . . . . . . . Terminal Hacks 10 | . . 1 1 . 8 . Record 9 | . . . 1 . 8 . Recall Investigation 1 | . . 1 . . . . Fabricator Hacks 1 | . . . . 1 . . Network Status 1 | . . . . 1 . . Repair Station Hacks . | . . . . . . . Recycling Unit Hacks . | . . . . . . . Scanalyzer . | . . . . . . . Garrison Access Hacks . | . . . . . . . Unauthorized Hacks 8 | . 2 4 2 . . . Terminals 5 | . . 3 2 . . . Track 1 | . . 1 . . . . Botnet 4 | . . 2 2 . . . Fabricators . | . . . . . . . Repair Stations . | . . . . . . . Recycling Units 3 | . 2 1 . . . . Monitor 1 | . 1 . . . . . Mask 2 | . 1 1 . . . . Scanalyzers . | . . . . . . . Garrison Access . | . . . . . . . Data Cores Recovered . | . . . . . . . Used . | . . . . . . . Hacking Detections 9 | . 1 5 2 1 . . Full Trace Events 6 | . . 4 2 . . . Feedback Events . | . . . . . . . Feedback Blocked . | . . . . . . . Robot Schematics Acquired . | . . . . . . . Robots Built . | . . . . . . . Authchips . | . . . . . . . Time . | . . . . . . . Total Robot Build Rating . | . . . . . . . Part Schematics Acquired . | . . . . . . . Parts Built . | . . . . . . . Authchips . | . . . . . . . Time . | . . . . . . . Total Part Build Rating . | . . . . . . . Parts Repaired . | . . . . . . . Time . | . . . . . . . Parts Recycled . | . . . . . . . Recycled Matter . | . . . . . . . Retrieved Matter . | . . . . . . . Retrieved Components . | . . . . . . . Parts Scanalyzed . | . . . . . . . Part Schematics Acquired . | . . . . . . . Parts Damaged . | . . . . . . . Bothacking | -11 -10 -9 -8 -7 -7 -7 ------------ Run | Yrd Mat Mat Mat Fac Low Low Used RIF Installer . | . . . . . . . Robots Hacked . | . . . . . . . Non-combat . | . . . . . . . Combat . | . . . . . . . Robot Hacks Applied . | . . . . . . . Relay Couplers Released . | . . . . . . . Fabnet Peak Effective % . | . . . . . . . Robots Rewired . | . . . . . . . Allies Hacked . | . . . . . . . Hacks Repelled . | . . . . . . . Allies | -11 -10 -9 -8 -7 -7 -7 -------- Run | Yrd Mat Mat Mat Fac Low Low Total Allies 1 | . . . . . . 1 Largest Group 1 | . . . . . . 1 Highest-Rated Group 135 | . . . . . . 135 Highest-Rated Ally 135 | . . . . . . 135 Total Orders . | . . . . . . . Ally Attacks . | . . . . . . . Total Damage . | . . . . . . . Kills . | . . . . . . . Allies Corrupted . | . . . . . . . Allies Melted . | . . . . . . . Intel | -11 -10 -9 -8 -7 -7 -7 ------- Run | Yrd Mat Mat Mat Fac Low Low Robot Analysis Total . | . . . . . . . Derelict Logs Recovered 1 | . . . . . 1 . Drone Launches . | . . . . . . . Drone Recoveries . | . . . . . . . Exploration | -11 -10 -9 -8 -7 -7 -7 ------------- Run | Yrd Mat Mat Mat Fac Low Low Turns Passed 6843 | 38 94 1749 1215 631 1340 1776 Spaces Moved 2252 | 32 115 533 379 303 625 265 Core 97 | 8 2 . . . . 87 Treads 287 | . . 287 . . . . Legs 1669 | 24 6 154 379 303 625 178 Wheels . | . . . . . . . Hover . | . . . . . . . Flight 199 | . 107 92 . . . . Fastest Speed 37 | 50 37 37 187 188 188 50 Average Speed 264 | 102 53 292 231 188 189 628 Slowest Speed 1900 | 120 750 400 262 188 262 1900 Overloaded Moves . | . . . . . . . Propulsion Burnouts . | . . . . . . . Robots Hopped . | . . . . . . . Cave-ins Triggered . | . . . . . . . Exploration Rate (%) 34 | 3 25 55 30 14 73 40 Regions Visited 6 Branch Regions 2 Pre-discovered Areas 1 | . . . . . 1 . Known Exits Taken . | . . . . . . . Unknown Exits Taken 6 | 1 1 1 1 1 1 . Scrap Searched 5 | . . . . . 2 3 Spaces Dug . | . . . . . . . Terrain Destroyed 312 | . . 12 60 13 12 215 Melee . | . . . . . . . Projectile 22 | . . . . . 12 10 AOE 290 | . . 12 60 13 . 205 Terrain Rammed . | . . . . . . . Walls Destroyed . | . . . . . . . Machines Disabled . | . . . . . . . Actions | -11 -10 -9 -8 -7 -7 -7 --------- Run | Yrd Mat Mat Mat Fac Low Low Total 2933 | 37 148 659 700 341 722 326 Wait 268 | . 25 8 204 1 30 . Move 2246 | 31 114 532 378 302 624 265 Hop . | . . . . . . . Pick Up 107 | 3 3 45 37 7 6 6 Fast Attach 5 | . . 3 2 . . . Attach 77 | 3 3 14 23 6 14 14 Detach 5 | . . 1 . 1 1 2 Swap 3 | . . . 1 . 1 1 Drop 77 | . 3 18 34 8 10 4 Fire 134 | . . 38 15 16 35 30 Melee 10 | . . . 6 . . 4 Ram . | . . . . . . . Kick . | . . . . . . . Crush . | . . . . . . . Escape Stasis . | . . . . . . . Rewire 1 | . . . . . 1 . Trap . | . . . . . . . Miscellaneous . | . . . . . . . Route ------- -11/Scrapyard -10/Materials (discovered 2 exits: *Mat / [*Min]) -9/Materials -8/Materials -7/Factory (discovered 2 exits: [*Fac] / *Low) -7/Lower Caves -7/Lower Caves History --------- Turn | Location | Event 4 | -11/Scrapyard | Discovered new exit (range 15) 39 | -11/Scrapyard | Entered Materials 75 | -10/Materials | Discovered new exit (range 13) 128 | -10/Materials | Discovered new exit (range 12) 133 | -10/Materials | Entered another Materials area 133 | -9/Materials | Evolved 2 slots: Utility x2 327 | -9/Materials | Build established: Mutant 1818 | -9/Materials | Discovered new exit (range 13) 1882 | -9/Materials | Entered another Materials area 1882 | -8/Materials | Evolved 2 slots: Propulsion x2 2006 | -8/Materials | Garrison activated, responded to threat 2221 | -8/Materials | Build established: Scavenger-Mutant 2827 | -8/Materials | Build established: Mutant 2942 | -8/Materials | Met 7R-MNS 3069 | -8/Materials | Discovered new exit (range 15) 3097 | -8/Materials | Entered Factory 3097 | -7/Factory | Evolved 2 slots: Power x1, Propulsion x1 3098 | -7/Factory | Caught up to 7R-MNS 3587 | -7/Factory | Discovered new exit (range 12) 3635 | -7/Factory | Discovered new exit (range 15) 3728 | -7/Factory | Entered Lower Caves 4071 | -7/Lower Caves | Ambushed by wild Derelicts 4623 | -7/Lower Caves | Learned location of Extension (-6) 4623 | -7/Lower Caves | Learned Armory trap positions 4623 | -7/Lower Caves | Learned Extension stockpile data 4623 | -7/Lower Caves | Learned Research garrison access intel 4742 | -7/Lower Caves | Attracted the attention of an 0b10 checkpoint 5021 | -7/Lower Caves | Discovered new exit (range 11) 5039 | -7/Lower Caves | Learned Factory terminal intel 5068 | -7/Lower Caves | Entered another Lower Caves area 5215 | -7/Lower Caves | Lost 5 parts (2p2n1w) 5577 | -7/Lower Caves | System corruption reached 10% 5616 | -7/Lower Caves | Lost 11 parts (1p3n3u4w) 6825 | -7/Lower Caves | Core integrity fell below 50% 6829 | -7/Lower Caves | Released all parts (1) 6838 | -7/Lower Caves | Core integrity fell below 20% 6839 | -7/Lower Caves | Attracted the attention of an 0b10 base 6844 | -7/Lower Caves | Destroyed by S-27 Virus with Autogun Last Messages --------------- 06829_ Released Huge Storage Unit. 06830_ Penetrated by Slug. A strange signal echoes through the caves. 06837_ Searching scrap... 06837_ Found Gauss Rifle. 06837_ Found Mak. Laser. 06837_ Found Target Analyzer. 06837_ Found 13 Matter. 06837_ G-47 Trooper springs to life. 06838_ Acquired 13 matter. 06838_ S-27 Virus springs to life. 06838_ G-47 Trooper springs to life. 06838_ S-27 Virus springs to life. 06842_ Dropped Hvy. Rocket Launcher. 06843_ System corrupted: Matter fused (-10). 06843_ Hvy. Missile Launcher destroyed. 06843_ Penetrated by Slug. 06843_ Dropped Mak. System Shield. 06843_ Dropped Hvy. Missile Launcher. 06844_ Dropped Corrupted Particle Gun. Map ----- +----------------------------------------------------+ | ?????????????????????????????????????????????????? | | ?????????????????????????????????????????????????? | | ?????????????????????????????????????????????????? | | ?????????????????????????????????????????????????? | | ?????????????????????????????????????????????????? | | ?????????????????????????????????????????????????? | | ?????????????????????????????????????????????????? | | ?????????????????????????????????????????????????? | | ?????????????????????????????????????????????????? | | ?????????????????????????????????????????????????? | | ?????????????????????????????????????????????????? | | ?????????????????????????????????????????????????? | | ?????????????????????????????????????????????????? | | ?????????????????????????????????????????????????? | | ?????????????????????????????????????????????????? | | ?????????????????????????????????????????????????? | | ?????????????????????##+??######?????????????????? | | ????????????????#""""# ?? "#????????????????? | | ????????????????#""""# ?? ""# ?????????????? | | ????????????????#"T""#/#### "# ??? ????????? | | ????????????????# Y"""# ""# # ????????? | | ????????????????# g # "# ?????????? | | ????????????????# """ # / ????????? | | ????????????????# """ g s / ????????? | | ????????????????# """ sss / #???? #???????? | | ????????????????# """ []@# / #????? ???????? | | ????????????????# [ [# "# #????? ???????? | | ????????????????# !"""# ""# #????? ???????? | | ????????????????#""""###### "# #####? ???????# | | ?????????????????????# ""# ?? ?????## | | ?????????????????????# "# ???? ##### | | ?????????????# #######++####### #?????# ## ## | | ?????????????# #??????# | | ?????????????# ]! ###???## | | ?????????????############### ]/ #???# | | ???????????????????????????# ] ##### # | | ???????????????????????????# #" # | | ??????????????????????????# #### ## | | ??????????????????????????# ##??######## ### | | ??????????????????????????## #?????????# #" | | ???????????????????????????###?????????## | | ????????????????????????????????????????## | | ?????????????????????????????????????????## | | ??????????????????????????????????????????## """ | | ???????????????????????????????????????????##### | | ???????????????????????????????????????????????### | | ?????????????????????????????????????????????????? | | ?????????????????????????????????????????????????? | | ?????????????????????????????????????????????????? | | ?????????????????????????????????????????????????? | +----------------------------------------------------+ Best States ------------- Heat Dissipation 56 Energy Generation 29 Energy Capacity 650 Matter Stores 300 Matter Capacity 300 Sight Range 16 Terrain Scan Density 10 Base Temperature (-) 100 Armor Coverage 225 Evasion (%) 62 Targeting Accuracy 18 Recoil Reduction 2 Item Schematics ----------------- None Robot Schematics ------------------ None Fabricated ------------ Nothing Alien Tech Used ----------------- None Achievements -------------- Maybe Next Time I'll Detach My Launcher Challenges ------------ None Game ------ Seed NeutrinoScanShotgun Manual? 0 Play Time 00:46:16 Cumulative 24.5 hours Start 2024.04.02 @ 01:29:19 End 2024.04.02 @ 02:13:43 Sessions 1 Manual Loads 0 Difficulty Rogue Special Mode None Game No. 60 Rogue 20 Adventurer 14 Explorer 26 Win Type - Total 0 Types 0/0/0/0/0/0/0/0/0 Lore% 18 Gallery% 27 Achievement% 23 Wizard Run 0 Options --------- Layout 0 ASCII 0 Keyboard 0 Movement Mouse Keybinds 0 Fullscreen 1 Font 18/SmallcapsGlow Map View 76x50 Zoom Use 0% Tactical HUD 1 Map Filters NONE Filters NONE Steam 1 RUN: e1c2bf9e-ff6f-4c2b-873e-e90156cb16ba